Cogmind - Beta 11.1 @@@ ROGUE MODE // 2022.07.17 @ 05:59:27 Player: Smie Result: Destroyed by as-08184 with Assembled Blade Performance ------------- Evolutions (0) 0 Regions Visited (3) 600 Robots Destroyed (20) 100 Value Destroyed (480) 480 Prototype IDs (23) 460 Alien Tech Used (0) 0 Bonus (300) 300 TOTAL SCORE: 1940 Bonus ------- Aligned with FarCom 300 Cogmind --------- Core Integrity 0/250 Matter 260/300 Energy 89/100 System Corruption 1% Temperature Cool (0) Movement Rolling (115) Ox1 Location -10/Exiles Parts ------- > --- POWER (1) -------- (None) > --- PROPULSION (2) --- Compact Wheel > --- UTILITY (2) ------ Large Storage Unit > --- WEAPON (2) ------- (None) > --- INVENTORY (15) --- Light Ion Engine Light Treads Improved Treads Improved Treads Huge Storage Unit High-capacity Matter Pod (200) Sensor Array Light Armor Plating XL Autogun Array Peak State ------------ > --- POWER ------------ Ion Engine > --- PROPULSION ------- Improved Treads Improved Treads > --- UTILITY ---------- Large Storage Unit Improved Light Armor Plating > --- WEAPON ----------- Heavy Assault Rifle Heavy Assault Rifle > --- INVENTORY -------- Light Ion Engine Light Treads Improved Treads Improved Treads Compact Wheel Huge Storage Unit High-capacity Matter Pod Sensor Array Light Armor Plating Light Assault Rifle Heavy Assault Rifle XL Autogun Array [Rating: 18] Favorites ----------- Power Ion Engine Engine Ion Engine Propulsion Improved Treads Treads Improved Treads Wheel Wheel Utility High-capacity Matter Pod Storage High-capacity Matter Pod Protection Improved Light Armor Plating Weapon Heavy Assault Rifle Energy Gun Small Laser Ballistic Gun Heavy Assault Rifle Build | -11 -10 -10 -10 ------- Run | Scr Mat Min Exi Slots Evolved . | . . . . Power . | . . . . Propulsion . | . . . . Utility . | . . . . Weapon . | . . . . Parts Attached 20 | 6 10 1 3 Power 2 | 1 1 . . Engine 2 | 1 1 . . Core . | . . . . Reactor . | . . . . Propulsion 5 | 2 2 . 1 Treads 2 | . 2 . . Leg . | . . . . Wheel 3 | 2 . . 1 Hover . | . . . . Flight . | . . . . Utility 6 | 1 4 1 . Device . | . . . . Storage 5 | 1 4 . . Processor . | . . . . Hackware . | . . . . Protection 1 | . . 1 . Artifact . | . . . . Weapon 7 | 2 3 . 2 Energy Gun 2 | 2 . . . Energy Cannon . | . . . . Ballistic Gun 5 | . 3 . 2 Ballistic Cannon . | . . . . Launcher . | . . . . Special Weapon . | . . . . Impact Weapon . | . . . . Slashing Weapon . | . . . . Piercing Weapon . | . . . . Special Melee Weapon . | . . . . Unidentified Prototypes . | . . . . Parts Lost 8 | . 1 . 7 Power 1 | . . . 1 Propulsion 2 | . . . 2 Utility 1 | . . . 1 Weapon 4 | . 1 . 3 Highest Loss Streak 7 | . 1 . 7 To Critical Strikes . | . . . . Average Slot Usage (%) 97 | . 95 100 96 Engine 13 | . 14 14 12 Treads 27 | . 27 28 26 Storage 23 | . 24 26 14 Protection 2 | . . 1 14 Ballistic Gun 27 | . 26 28 27 Naked Turns . | . . . . Heaviest Build 35 | 11 35 35 34 Greatest Support 46 | 26 46 46 46 Greatest Overweight (x) 1 | . . . 1 Average Overweight (x) . | . . . . Largest Inventory Capacity 25 | 8 25 15 15 Average Capacity 11 | 7 9 15 15 Most Carried 15 | 8 9 14 15 Average Carried 9 | 4 8 11 14 Final Capacity 15 | 8 15 15 15 Final Carried 14 | 7 9 14 12 Class Distribution -------------------- 100% | Mutant Dominant Class ---------------- Mutant | -10/Materials Mutant | -10/Mines Mutant | -10/Exiles Resources | -11 -10 -10 -10 ----------- Run | Scr Mat Min Exi Matter Collected 858 | 260 332 266 . Remotely . | . . . . Salvage Created 759 | 83 505 123 48 Parts 41 | 3 25 13 . Haulers Intercepted 1 | . 1 . . Recyclers Shooed 1 | . 1 . . Parts Field Recycled . | . . . . Retrieved Matter . | . . . . Parts Self-Destructed . | . . . . Prevented . | . . . . Kills | -11 -10 -10 -10 ------- Run | Scr Mat Min Exi Combat Hostiles Destroyed 20 | . 11 6 3 Guns 20 | . 11 6 3 Classes Destroyed 7 | 1 5 1 . Tunneler 1 | . 1 . . Hauler 1 | . 1 . . Recycler 1 | 1 . . . Watcher 1 | . 1 . . Swarmer 6 | . 3 3 . Grunt 10 | . 8 2 . Assembled 4 | . . 1 3 Best Kill Streak 4 | 1 4 3 3 Combat Bots Only 4 | . 4 3 3 Max Kills in Single Turn 1 | 1 1 1 1 Gunslinging . | . . . . Exploded . | . . . . Melee . | . . . . Uniques/NPCs Destroyed . | . . . . Combat | -11 -10 -10 -10 -------- Run | Scr Mat Min Exi Damage Taken 1452 | . 459 166 827 Core 274 | . 97 21 156 Absorbed by Shields . | . . . . Core Remaining (%) 100 | 100 . . . Volleys Fired 63 | 5 37 11 10 Largest 2 | 1 2 2 2 Hottest 46 | 40 46 46 46 Shots Fired 118 | 5 74 22 17 Gun 118 | 5 74 22 17 Cannon . | . . . . Launcher . | . . . . Special . | . . . . Kinetic 113 | . 74 22 17 Thermal 5 | 5 . . . Explosive . | . . . . Electromagnetic . | . . . . Robot Hit Streak 8 | 4 8 7 4 Robot Miss Streak 5 | 1 5 4 4 Penetration Max . | . . . . Secondary Targets 2 | . 2 . . Max Gunslinging Chain 1 | . 1 . . Shots Hit Robots 72 | 4 47 13 8 Core Hits 38 | 2 21 9 6 Critical Kills . | . . . . Critical Parts Destroyed . | . . . . Critical Strikes . | . . . . Melee Attacks . | . . . . Impact . | . . . . Slashing . | . . . . Piercing . | . . . . Sneak Attacks . | . . . . Combat Hostiles . | . . . . Follow-up Attacks . | . . . . Damage Inflicted 1075 | 43 708 181 143 Guns 1072 | 43 705 181 143 Cannons . | . . . . Explosions . | . . . . Melee . | . . . . Ramming 3 | . 3 . . Kinetic 1029 | . 705 181 143 Thermal 43 | 43 . . . Explosive . | . . . . Electromagnetic . | . . . . Impact . | . . . . Slashing . | . . . . Piercing . | . . . . Highest Corruption 1 | . 1 1 1 Average Corruption 1 | . 1 1 1 Corruption Purged . | . . . . Corruption Blocked . | . . . . Effects 7 | . 1 5 1 Message Errors 3 | . . 3 . Matter Fused 1 | . . 1 . Heat Flow Errors 1 | . . 1 . Data Loss (major) 1 | . 1 . . Misfires 1 | . . . 1 Overload Shots . | . . . . Overflow Damage . | . . . . Projectiles . | . . . . Explosions . | . . . . Melee . | . . . . Knockbacks . | . . . . Impact . | . . . . Kinetic . | . . . . Secondary . | . . . . Self-Inflicted Damage . | . . . . Shots . | . . . . Rammed 1 | . 1 . . Targets Rammed 1 | . 1 . . Kicked . | . . . . Crushed . | . . . . Highest Temperature 99 | . 20 99 34 Average Temperature 13 | . 5 25 20 Received Heat Transfer 384 | . 216 48 120 Siege Activations . | . . . . Robots Corrupted . | . . . . Combat Hostiles . | . . . . Parts Fried . | . . . . Impact Corruptions . | . . . . Robots Melted . | . . . . Combat Hostiles . | . . . . Parts Melted . | . . . . Heat Transferred 100 | 100 . . . Parts Sabotaged . | . . . . Parts Stolen . | . . . . Parts Stripped . | . . . . Power Chain Reactions . | . . . . Missiles Intercepted . | . . . . Alert | -11 -10 -10 -10 ------- Run | Scr Mat Min Exi Peak Influence 219 | 5 219 147 . Initial 27 | . 3 27 . Average 79 | 1 74 100 . Maximum Alert Level 1 | . 1 . . Low Security (%) 97 | 100 95 100 . Level 1 2 | . 4 . . Level 2 . | . . . . Level 3 . | . . . . Level 4 . | . . . . Level 5 . | . . . . High Security . | . . . . Max Security . | . . . . Squads Dispatched 3 | . 3 . . Investigation 2 | . 2 . . Extermination . | . . . . Reinforcement 1 | . 1 . . Assault . | . . . . Garrison . | . . . . Intercept . | . . . . Searches Triggered . | . . . . Construction Impeded . | . . . . Haulers Reinforced . | . . . . Active Scanning Responses . | . . . . Cargo Convoy Interrupts . | . . . . Stealth | -11 -10 -10 -10 --------- Run | Scr Mat Min Exi Distress Signals 1 | . 1 . . Communications Jammed . | . . . . Distress Signals . | . . . . Times Spotted 31 | . 16 7 8 Peak Tracking Total 9 | . 5 3 9 Tactical Retreats . | . . . . Traps | -11 -10 -10 -10 ------- Run | Scr Mat Min Exi Traps Triggered 4 | . 4 . . Indirectly . | . . . . Trap Hack Attempts . | . . . . Triggered . | . . . . Disarmed . | . . . . Reprogrammed . | . . . . Reused . | . . . . Traps Extracted . | . . . . Installed . | . . . . Triggered . | . . . . Machines | -11 -10 -10 -10 ---------- Run | Scr Mat Min Exi Machines Disabled 3 | . 1 . 2 Max in Single Turn 1 | . 1 . 1 Machines Sabotaged . | . . . . Garrisons Compromised . | . . . . Overloaded Fab Kills . | . . . . Hacking | -11 -10 -10 -10 --------- Run | Scr Mat Min Exi Machines Accessed 6 | . 4 1 1 Terminals 5 | . 4 1 . Fabricators . | . . . . Repair Stations . | . . . . Recycling Units . | . . . . Scanalyzers . | . . . . Garrison Access . | . . . . Total Hacks 18 | . 15 2 1 Successful 7 | . 5 1 1 Failed 11 | . 10 1 . Catastrophic 1 | . 1 . . Database Lockouts . | . . . . Manual 4 | . 3 . 1 Terminals 17 | . 15 2 . Fabricators . | . . . . Repair Stations . | . . . . Recycling Units . | . . . . Scanalyzers . | . . . . Garrison Access . | . . . . Terminal Hacks 6 | . 4 1 1 Recall Investigation 1 | . 1 . . Zone Layout 4 | . 3 1 . EX-Prototype ID Bank 1 | . . . 1 Fabricator Hacks . | . . . . Repair Station Hacks . | . . . . Recycling Unit Hacks . | . . . . Scanalyzer . | . . . . Garrison Access Hacks . | . . . . Unauthorized Hacks 1 | . 1 . . Terminals 1 | . 1 . . Botnet 1 | . 1 . . Fabricators . | . . . . Repair Stations . | . . . . Recycling Units . | . . . . Scanalyzers . | . . . . Garrison Access . | . . . . Data Cores Recovered . | . . . . Used . | . . . . Hacking Detections 5 | . 4 1 . Full Trace Events 1 | . 1 . . Feedback Events . | . . . . Feedback Blocked . | . . . . Robot Schematics Acquired . | . . . . Robots Built . | . . . . Authchips . | . . . . Time . | . . . . Total Robot Build Rating . | . . . . Part Schematics Acquired . | . . . . Parts Built . | . . . . Authchips . | . . . . Time . | . . . . Total Part Build Rating . | . . . . Parts Repaired . | . . . . Time . | . . . . Parts Recycled . | . . . . Recycled Matter . | . . . . Retrieved Matter . | . . . . Retrieved Components . | . . . . Parts Scanalyzed . | . . . . Part Schematics Acquired . | . . . . Parts Damaged . | . . . . Bothacking | -11 -10 -10 -10 ------------ Run | Scr Mat Min Exi Used RIF Installer . | . . . . Robots Hacked . | . . . . Non-combat . | . . . . Combat . | . . . . Robot Hacks Applied . | . . . . Relay Couplers Released . | . . . . Fabnet Peak Effective % . | . . . . Robots Rewired . | . . . . Allies Hacked . | . . . . Hacks Repelled . | . . . . Allies | -11 -10 -10 -10 -------- Run | Scr Mat Min Exi Total Allies 2 | . . 2 . Largest Group 2 | . . 2 1 Highest-Rated Group 42 | . . 42 31 Highest-Rated Ally 31 | . . 31 31 Total Orders . | . . . . Ally Attacks 3 | . . 3 . Total Damage 42 | . . 42 . Kills 2 | . . 2 . Allies Corrupted . | . . . . Allies Melted . | . . . . Intel | -11 -10 -10 -10 ------- Run | Scr Mat Min Exi Robot Analysis Total . | . . . . Derelict Logs Recovered 1 | . . 1 . Drone Launches . | . . . . Drone Recoveries . | . . . . Exploration | -11 -10 -10 -10 ------------- Run | Scr Mat Min Exi Turns Passed 1706 | 72 863 508 263 Spaces Moved 922 | 50 434 293 145 Core 2 | 2 . . . Treads 858 | . 421 293 144 Legs . | . . . . Wheels 62 | 48 13 . 1 Hover . | . . . . Flight . | . . . . Fastest Speed 50 | 50 90 160 115 Average Speed 155 | 87 157 160 159 Slowest Speed 160 | 90 160 160 160 Overloaded Moves . | . . . . Propulsion Burnouts . | . . . . Robots Hopped . | . . . . Cave-ins Triggered . | . . . . Exploration Rate (%) 49 | 3 83 73 39 Regions Visited 3 Branch Regions 2 Pre-discovered Areas . | . . . . Known Exits Taken . | . . . . Unknown Exits Taken 3 | 1 1 1 . Scrap Searched . | . . . . Spaces Dug . | . . . . Terrain Destroyed . | . . . . Melee . | . . . . Projectile . | . . . . AOE . | . . . . Terrain Rammed . | . . . . Walls Destroyed . | . . . . Machines Disabled . | . . . . Actions | -11 -10 -10 -10 --------- Run | Scr Mat Min Exi Total 1084 | 71 541 310 162 Wait 40 | 1 38 1 . Move 919 | 49 433 292 145 Hop . | . . . . Pick Up 25 | 10 9 5 1 Fast Attach 7 | 3 4 . . Attach 7 | 3 1 . 3 Detach 1 | . 1 . . Swap 6 | . 5 1 . Drop 15 | . 12 . 3 Fire 63 | 5 37 11 10 Melee . | . . . . Ram . | . . . . Kick . | . . . . Crush 1 | . 1 . . Escape Stasis . | . . . . Rewire . | . . . . Trap . | . . . . Miscellaneous . | . . . . Route ------- -11/Scrapyard -10/Materials (discovered 4 exits: [*Mat x2] / *Min x2) -10/Mines (discovered 3 exits: [*Mat x2] / *Exi) -10/Exiles History --------- Turn | Location | Event 22 | -11/Scrapyard | Discovered new exit (range 13) 73 | -11/Scrapyard | Entered Materials 272 | -10/Materials | Discovered new exit (range 16) 308 | -10/Materials | Build established: Mutant 366 | -10/Materials | Discovered new exit (range 10) 486 | -10/Materials | Discovered new exit (range 10) 794 | -10/Materials | Discovered new exit (range 7) 936 | -10/Materials | Entered Mines 1172 | -10/Mines | Found a damaged Exp. Sensor Array with a note attached 1199 | -10/Mines | Assembled infested the area 1255 | -10/Mines | Discovered new exit (range 4) 1385 | -10/Mines | Discovered new exit (range 10) 1438 | -10/Mines | Deemed a non-threat by the Exiles lab entrance 1438 | -10/Mines | Discovered new exit (range 5) 1444 | -10/Mines | Entered Exiles 1444 | -10/Exiles | Accompanied by 1 ally 1474 | -10/Exiles | Led the pair of lost Derelicts to a safe place 1481 | -10/Exiles | Met 8R-AWN 1512 | -10/Exiles | Met EX-HEX 1558 | -10/Exiles | Met EX-BIN 1576 | -10/Exiles | Aligned with FarCom system 1577 | -10/Exiles | Given EX-Vault access code 1614 | -10/Exiles | Opened EX-Vault 1625 | -10/Exiles | Found XL Autogun Array 1658 | -10/Exiles | Warned to stay clear of 0b10 Research branches 1661 | -10/Exiles | Attacked by the Exiles 1683 | -10/Exiles | Core integrity fell below 50% 1687 | -10/Exiles | Core integrity fell below 20% 1707 | -10/Exiles | Destroyed by as-08184 with Assembled Blade Last Messages --------------- 01688_ Imp. Treads destroyed. 01691_ Hvy. Assault Rifle destroyed. 01694_ as-48585 destroyed. 01695_ Hvy. Assault Rifle destroyed. 01699_ as-07472 destroyed. 01699_ Hvy. Assault Rifle severed. 01701_ HV Slug penetrates as-03392. 01701_ as-03392 suffers critical hit (Destroy). 01701_ HV Slug penetrates Machine. 01701_ HV Slug penetrates Wall. 01701_ as-03392 destroyed. 01703_ Penetrated by HV Slug. 01703_ HV Slug penetrates Wall. 01703_ HV Slug penetrates Machine. 01703_ Machine disabled. 01703_ HV Slug penetrates Machine. 01704_ Lgt. Assault Rifle destroyed. 01705_ Penetrated by HV Slug. 01705_ Imp. Light Armor Plating destroyed. 01705_ HV Slug penetrates Wall. Map ----- +----------------------------------------------------+ | ?????????????????????# #???####??????????????? | | ?????????????????????# #??"""""??????????????? | | ?????????????????????# ## """??????????????? | | ?????????????????????# X""??????????????? | | ?????????????????????# ## """??????????????? | | ???????????????####??# #??"""""??????????????? | | ???????????????"""""?# #???###???????????????? | | ??????????????"""" ## #?????????????????????? | | ?????????????#""X" #?????????????????????? | | ?????????????#" #?????????????????????? | | ?????????????#" ## #?????????????????????? | | ?????????????#""""""?# #?#########???????????? | | ??????????????#"###??# #?#"""""""#???????????? | | ?????????????????????# #?#"""""""#???????????? | | ?????????????????????# #?#"""""""#???????????? | | ????????????????????## ###"" """"#???????????? | | ????????????????????#" """"#???????????? | | ????????????????????# """#???????????? | | ????????????????????# """#???????????? | | ????????????????????# """#???????????? | | ????????????????????#" """#???????????? | | ????????????????????#" """#???????????? | | ????????????????????## """"???????????? | | ?????????????????????# """#???????????? | | ?????????????????????# "X" """"???????????? | | ?????????????????????# @ """ #???????????? | | ?????????????????????# a[ """""""""#???????????? | | ????????????????????##" %%%;##########???????????? | | ???????????????????##"" % ##????????????????????? | | ??????????????????##"" #?????????????????????? | | ??????????????????""" ag##????????????????????? | | ????????????????" " "" ##???###########?????? | | ???????????????"" " a #####"""""""""##????? | | ?????????????? " " """ """"##???? | | ???????????? "" " #???? | | ????????????? " """#???? | | ????????????? " "#???? | | ????????????? " "##??? | | ?????????????? ""###? | | ?????????????? """""" """#? | | ??????????????? ######""" "#? | | ???????????????""#?????#####""" ## | | ???????????????????????????##""" # | | ????????????????????????????#"""" | | ????????????????????????????#"" | | ?????????????????????????????""" | | ????????????????????????????? | | ????????????????????????????? | | ???????????????????????????? | | ???????????????????????????? | +----------------------------------------------------+ Best States ------------- Heat Dissipation 25 Energy Generation 10 Energy Capacity 250 Matter Stores 410 Matter Capacity 500 Sight Range 16 Terrain Scan Density 10 Armor Coverage 150 Evasion (%) 42 Recoil Reduction 2 Item Schematics ----------------- None Robot Schematics ------------------ None Fabricated ------------ Nothing Alien Tech Used ----------------- None Achievements -------------- None Challenges ------------ None Game ------ Seed SubatomicNuclearTrap Manual? 0 Play Time 00:24:45 Cumulative 112.6 hours Start 2022.07.17 @ 05:31:30 End 2022.07.17 @ 05:59:27 Sessions 1 Manual Loads 0 Difficulty Rogue Special Mode None Game No. 81 Rogue 62 Adventurer 16 Explorer 3 Win Type - Total 4 Types 4/0/0/0/0/0/0/0/0 Lore% 49 Gallery% 55 Achievement% 44 Wizard Run 0 Options --------- ASCII 0 Keyboard 0 Movement Mouse Keybinds 0 Fullscreen 0 Font 16/Terminus Map View 76x50 Tactical HUD 1 Map Filters NONE Filters NONE Steam X RUN: 9dd10eb1-aaf1-4416-a680-4788072e8394